fUST/lending_fUST_20240502
["ID","MTS","AMOUNT","RATE_DAILY","PERIOD"]
[325238724,1714614652291,-500.0,0.0005452,120]
[325238725,1714614652300,-500.0,0.0005452,120]
[325238726,1714614652310,-500.0,0.0005452,120]
[325238727,1714614652319,-500.0,0.0005452,120]
[325238728,1714614652329,-500.0,0.0005452,120]
[325238729,1714614652338,-500.0,0.0005452,120]
[325238730,1714614652348,-500.0,0.0005452,120]
[325238731,1714614652357,-633.61,0.0005452,2]
[325238732,1714614652367,-500.0,0.0005452,120]
[325238733,1714614652377,-500.0,0.0005452,120]
[325238734,1714614652386,-6479.3,0.0005452,120]
[325238735,1714614652396,-650.48,0.0005452,120]
[325238736,1714614652405,-500.0,0.0005452,120]
[325238737,1714614652414,-160.0,0.00054677,7]
[325238738,1714614652424,-500.0,0.00054794,120]
[325238739,1714614652433,-500.0,0.00054794,120]
[325238740,1714614652443,-500.0,0.00054794,120]
[325238741,1714614652458,-500.0,0.00054794,120]
[325238742,1714614652468,-500.0,0.00055068,120]
[325238743,1714614652477,-500.0,0.00055068,120]
[325238744,1714614652486,-503.48,0.00055068,120]
[325238745,1714614652495,-508.36997246,0.00055068,120]
[325238746,1714614652505,-500.0,0.00055068,120]
[325238747,1714614652514,-500.0,0.00055068,120]
[325238748,1714614652523,-500.0,0.00055068,120]
[325238749,1714614652532,-500.0,0.00055068,120]
[325238750,1714614652541,-500.0,0.00055068,120]
[325238751,1714614652550,-473.68676694,0.00055068,120]
[325238752,1714614652559,-500.0,0.00055068,120]
[325238753,1714614652568,-500.0,0.00055068,120]
[325238754,1714614652577,-500.0,0.00055068,120]
[325238755,1714614652587,-314.75902532,0.00055068,120]
[325238756,1714614652704,-185.24097468,0.00055068,120]
[325238757,1714614652714,-583.26,0.00055068,120]
[325238758,1714614652723,-500.0,0.00055068,120]
[325238759,1714614652732,-500.0,0.00055068,120]
[325238760,1714614652741,-568.26,0.00055068,120]
[325238761,1714614652750,-500.0,0.00055068,120]
[325238762,1714614652760,-500.0,0.00055068,120]
[325238763,1714614652770,-500.0,0.00055068,120]
[325238764,1714614652779,-500.0,0.00055068,120]
[325238765,1714614652789,-258.73803761,0.00055068,2]
[325238766,1714614652798,-500.0,0.00055068,2]
[325238767,1714614652808,-500.0,0.00055068,120]
[325238768,1714614652817,-500.0,0.00055068,120]
[325238769,1714614652828,-500.0,0.00055068,120]
[325238770,1714614652838,-500.0,0.00055068,120]
[325238771,1714614652847,-500.0,0.00055068,120]
[325238772,1714614652856,-500.0,0.00055068,120]
[325238773,1714614652867,-324.55740009,0.00055068,120]
[325238774,1714614652876,-500.0,0.00055068,120]
[325238775,1714614652886,-500.0,0.00055068,120]
[325238776,1714614652895,-500.0,0.00055068,120]
[325238777,1714614652905,-500.0,0.00055068,120]
[325238778,1714614652914,-500.0,0.00055068,7]
[325238779,1714614652924,-603.7,0.00055068,120]
[325238780,1714614652934,-500.0,0.00055068,120]
[325238781,1714614652943,-500.0,0.00055068,120]
[325238782,1714614652956,-500.0,0.00055068,120]
[325238783,1714614652968,-500.0,0.00055068,120]
[325238784,1714614652978,-500.0,0.00055068,120]
[325238785,1714614652988,-500.0,0.00055068,120]
[325238786,1714614652998,-500.0,0.00055068,120]
[325238787,1714614653007,-740.94,0.00055068,120]
[325238788,1714614653017,-1896.73,0.00055068,120]
[325238789,1714614653027,-590.33,0.00055068,120]
[325238790,1714614653036,-500.0,0.00055068,120]
[325238791,1714614653044,-500.0,0.00055068,120]
[325238792,1714614653054,-500.0,0.00055068,120]
[325238793,1714614653065,-500.0,0.00055068,120]
[325238794,1714614653074,-500.0,0.00055068,120]
[325238795,1714614653083,-500.0,0.00055068,120]
[325238796,1714614653092,-500.0,0.00055068,120]
[325238797,1714614653101,-1302.14232095,0.00055068,120]
[325238798,1714614653113,-2807.73892688,0.00055068,120]
[325238799,1714614653474,-19.06519104,0.00053424,7]
[325238800,1714614653659,-131.93480896,0.00053424,7]
[325238801,1714614653669,-617.15875217,0.00055068,120]
[325238802,1714614653678,-500.0,0.00055068,120]
[325238803,1714614653689,-500.0,0.00055068,120]
[325238804,1714614653699,-500.0,0.00055068,30]
[325238805,1714614653708,-544.9,0.00055068,21]
[325238806,1714614653717,-642.32,0.00055068,2]
[325238807,1714614653726,-500.0,0.00055068,120]
[325238808,1714614653736,-781.53,0.00055068,120]
[325238809,1714614653745,-544.51,0.00055068,120]
[325238810,1714614653755,-500.0,0.00055068,120]
[325238811,1714614653764,-500.0,0.00055068,120]
[325238812,1714614653773,-500.0,0.00055068,120]
[325238813,1714614653782,-500.0,0.00055068,120]
[325238814,1714614653791,-500.0,0.00055068,120]
[325238815,1714614653801,-500.0,0.00055068,120]
[325238816,1714614653810,-1890.85,0.00055068,120]
[325238817,1714614653820,-500.0,0.00055068,120]
[325238818,1714614653829,-807.48,0.00055068,120]
[325238819,1714614653838,-500.0,0.00055068,120]
[325238820,1714614653848,-518.7,0.00055068,120]
[325238821,1714614653858,-500.0,0.00055068,120]
[325238822,1714614653867,-937.04,0.00055068,120]
[325238823,1714614653877,-500.0,0.00055068,120]
[325238824,1714614653888,-500.0,0.00055068,120]
[325238825,1714614653898,-500.0,0.00055068,120]
[325238826,1714614653907,-559.98,0.00055068,120]
[325238827,1714614653917,-500.0,0.00055068,120]
[325238828,1714614653926,-601.43,0.00055068,120]
[325238829,1714614653935,-500.0,0.00055068,120]
[325238830,1714614653945,-500.0,0.00055068,120]
[325238831,1714614653956,-500.0,0.00055068,120]
[325238832,1714614653965,-500.0,0.00055068,120]
[325238833,1714614653974,-500.0,0.00055068,120]
[325238834,1714614653989,-500.0,0.00055068,120]
[325238835,1714614653999,-649.20811034,0.00055068,120]
[325238836,1714614654008,-500.0,0.00055068,120]
[325238837,1714614654017,-500.0,0.00055068,120]
[325238838,1714614654028,-612.1,0.00055068,120]
[325238839,1714614654037,-500.0,0.00055068,120]
[325238840,1714614654046,-500.0,0.00055068,120]
[325238841,1714614654056,-500.0,0.00055068,120]
[325238842,1714614654065,-500.0,0.00055068,120]
[325238843,1714614654075,-500.0,0.00055068,120]
[325238844,1714614654083,-500.0,0.00055068,120]
[325238845,1714614654093,-935.27,0.00055068,120]
[325238846,1714614654104,-441.88381663,0.00055068,120]
[325238847,1714614654113,-500.0,0.00055068,120]
[325238848,1714614654122,-500.0,0.00055068,120]
[325238849,1714614654132,-500.0,0.00055068,120]
[325238850,1714614654141,-169.10267476,0.00055068,120]
[325238851,1714614654150,-500.0,0.00055068,120]
[325238852,1714614654159,-500.0,0.00055068,120]
[325238853,1714614654168,-633.61,0.00055068,2]
[325238854,1714614654178,-454.72282184,0.00055068,120]
[325238855,1714614654187,-514.36150927,0.00055068,120]
[325238856,1714614654198,-6479.3,0.00055068,120]
[325238857,1714614654207,-650.48,0.00055068,120]
[325238858,1714614654217,-500.0,0.00055068,120]
[325238859,1714614654227,-160.0,0.00055095,8]
[325238860,1714614654236,-10000.0,0.00055266,120]
[325238861,1714614654245,-151.0,0.0005537,120]
[325238862,1714614654254,-160.0,0.00055513,9]
[325238863,1714614654263,-150.0,0.00055519,60]
[325238864,1714614654274,-500.0,0.00055616,120]
[325238865,1714614654285,-500.0,0.00055616,120]
[325238866,1714614654294,-503.48,0.00055616,120]
[325238867,1714614654303,-500.0,0.00055616,120]
[325238868,1714614654312,-500.0,0.00055616,120]
[325238869,1714614654322,-500.0,0.00055616,120]
[325238870,1714614654331,-509.23916116,0.00055616,120]
[325238871,1714614654341,-395.47833111,0.00055616,120]
[325238872,1714614654350,-292.55344224,0.00055616,120]
[325238873,1714614654360,-500.0,0.00055616,120]
[325238874,1714614654370,-500.0,0.00055616,120]
[325238875,1714614654379,-308.63013987,0.00055616,120]
[325238876,1714614654389,-583.26,0.00055616,120]
[325238877,1714614654398,-500.0,0.00055616,120]
[325238878,1714614654408,-500.0,0.00055616,120]
[325238879,1714614654417,-568.26,0.00055616,120]
[325238880,1714614654426,-500.0,0.00055616,120]
[325238881,1714614654436,-500.0,0.00055616,120]
[325238882,1714614654445,-500.0,0.00055616,120]
[325238883,1714614654459,-500.0,0.00055616,120]
[325238884,1714614654469,-500.0,0.00055616,2]
[325238885,1714614654479,-168.42738392,0.00055616,120]
[325238886,1714614654488,-500.0,0.00055616,120]
[325238887,1714614654497,-500.0,0.00055616,120]
[325238888,1714614654506,-500.0,0.00055616,120]
[325238889,1714614654516,-500.0,0.00055616,120]
[325238890,1714614654525,-500.0,0.00055616,120]
[325238891,1714614654534,-535.29807833,0.00055616,120]
[325238892,1714614654543,-500.0,0.00055616,120]
[325238893,1714614654552,-500.0,0.00055616,120]
[325238894,1714614654562,-500.0,0.00055616,120]
[325238895,1714614654571,-500.0,0.00055616,7]
[325238896,1714614654580,-603.7,0.00055616,120]
[325238897,1714614654589,-500.0,0.00055616,120]
[325238898,1714614654598,-500.0,0.00055616,120]
[325238899,1714614654609,-609.29553547,0.00055616,120]
[325238900,1714614654618,-500.0,0.00055616,120]
[325238901,1714614654628,-500.0,0.00055616,120]
[325238902,1714614654638,-500.0,0.00055616,120]
[325238903,1714614654647,-543.00578426,0.00055616,120]
[325238904,1714614654656,-740.94,0.00055616,120]
[325238905,1714614654665,-1896.73,0.00055616,120]
[325238906,1714614654675,-590.33,0.00055616,120]
[325238907,1714614654685,-500.0,0.00055616,120]
[325238908,1714614654694,-500.0,0.00055616,120]
[325238909,1714614654706,-500.0,0.00055616,120]
[325238910,1714614654715,-500.0,0.00055616,120]
[325238911,1714614654724,-500.0,0.00055616,120]
[325238912,1714614654733,-500.0,0.00055616,120]
[325238913,1714614654743,-500.0,0.00055616,120]
[325238914,1714614654752,-4727.04,0.00055616,120]
[325238915,1714614654761,-500.0,0.00055616,120]
[325238916,1714614654771,-500.0,0.00055616,120]
[325238917,1714614654780,-500.0,0.00055616,30]
[325238918,1714614654789,-544.9,0.00055616,21]
[325238919,1714614654798,-642.32,0.00055616,2]
[325238920,1714614654807,-488.49980083,0.00055616,120]
[325238921,1714614654817,-781.53,0.00055616,120]
[325238922,1714614654826,-544.51,0.00055616,120]
[325238923,1714614654836,-500.0,0.00055616,120]
[325238924,1714614654845,-500.0,0.00055616,120]
[325238925,1714614654854,-500.0,0.00055616,120]
[325238926,1714614654863,-500.0,0.00055616,120]
[325238927,1714614654873,-500.0,0.00055616,120]
[325238928,1714614654882,-449.48727579,0.00055616,120]
[325238929,1714614654892,-1890.85,0.00055616,120]
[325238930,1714614654901,-500.0,0.00055616,120]
[325238931,1714614654910,-807.48,0.00055616,120]
[325238932,1714614654920,-500.0,0.00055616,120]
[325238933,1714614654930,-518.7,0.00055616,120]
[325238934,1714614654939,-500.0,0.00055616,120]
[325238935,1714614654948,-937.04,0.00055616,120]
[325238936,1714614654957,-244.94220394,0.00055616,120]
[325238937,1714614654967,-500.0,0.00055616,120]
[325238938,1714614654978,-645.04616126,0.00055616,120]
[325238939,1714614654988,-559.98,0.00055616,120]
[325238940,1714614654997,-500.0,0.00055616,120]
[325238941,1714614655007,-601.43,0.00055616,120]
[325238942,1714614655017,-500.0,0.00055616,120]
[325238943,1714614655026,-500.0,0.00055616,120]
[325238944,1714614655036,-500.0,0.00055616,120]
[325238945,1714614655045,-500.0,0.00055616,120]
[325238946,1714614655054,-500.0,0.00055616,120]
[325238947,1714614655065,-500.0,0.00055616,120]
[325238948,1714614655074,-500.0,0.00055616,120]
[325238949,1714614655083,-500.0,0.00055616,120]
[325238950,1714614655093,-612.1,0.00055616,120]
[325238951,1714614655102,-500.0,0.00055616,120]
[325238952,1714614655111,-500.0,0.00055616,120]
[325238953,1714614655121,-500.0,0.00055616,120]
[325238954,1714614655130,-500.0,0.00055616,120]
[325238955,1714614655139,-507.23137373,0.00055616,120]
[325238956,1714614655148,-500.0,0.00055616,120]
[325238957,1714614655157,-935.27,0.00055616,120]
[325238958,1714614655167,-500.0,0.00055616,120]
[325238959,1714614655176,-500.0,0.00055616,120]
[325238960,1714614655185,-500.0,0.00055616,120]
[325238961,1714614655194,-500.0,0.00055616,120]
[325238962,1714614655204,-500.0,0.00055616,120]
[325238963,1714614655213,-633.61,0.00055616,2]
[325238964,1714614655222,-6479.3,0.00055616,120]
[325238965,1714614655231,-650.48,0.00055616,120]
[325238966,1714614655241,-500.0,0.00055616,120]
[325238967,1714614655250,-160.0,0.00055931,10]
[325238968,1714614655260,-492.04653835,0.00056164,120]
[325238969,1714614655270,-500.0,0.00056164,120]
[325238970,1714614655279,-503.48,0.00056164,120]
[325238971,1714614655288,-500.0,0.00056164,120]
[325238972,1714614655298,-500.0,0.00056164,120]
[325238973,1714614655307,-500.0,0.00056164,120]
[325238974,1714614655317,-500.0,0.00056164,120]
[325238975,1714614655327,-500.0,0.00056164,120]
[325238976,1714614655336,-583.26,0.00056164,120]
[325238977,1714614655346,-500.0,0.00056164,120]
[325238978,1714614655355,-500.0,0.00056164,120]
[325238979,1714614655365,-568.26,0.00056164,120]
[325238980,1714614655375,-560.6499095,0.00056164,120]
[325238981,1714614655384,-500.0,0.00056164,120]
[325238982,1714614655394,-500.0,0.00056164,120]
[325238983,1714614655403,-500.0,0.00056164,120]
[325238984,1714614655412,-500.0,0.00056164,2]
[325238985,1714614655422,-500.0,0.00056164,120]
[325238986,1714614655431,-500.0,0.00056164,120]
[325238987,1714614655442,-571.37443311,0.00056164,120]
[325238988,1714614655451,-500.0,0.00056164,120]
[325238989,1714614655461,-500.0,0.00056164,120]
[325238990,1714614655472,-500.0,0.00056164,120]
[325238991,1714614655482,-500.0,0.00056164,120]
[325238992,1714614655492,-500.0,0.00056164,120]
[325238993,1714614655501,-500.0,0.00056164,7]
[325238994,1714614655511,-603.7,0.00056164,120]
[325238995,1714614655520,-500.0,0.00056164,120]
[325238996,1714614655530,-500.0,0.00056164,120]
[325238997,1714614655539,-500.0,0.00056164,120]
[325238998,1714614655548,-500.0,0.00056164,120]
[325238999,1714614655558,-126.92327611,0.00056164,120]
[325239000,1714614655850,648.51590395,0.00020913,2]
[325239001,1714614666385,164.50151735,0.00020913,2]
[325239002,1714614698257,783.12312926,0.00020913,2]
[325239005,1714614802773,191.1405715,0.00020913,2]
[325239006,1714614849599,1578.90112118,0.00020913,2]
[325239008,1714614882988,326.46049372,0.00021,2]
[325239013,1714615579929,150.0,0.000189,2]
[325239014,1714615660078,45076.96122347,0.00020913,2]
[325239015,1714615795188,187.34243145,0.00020913,2]
[325239062,1714615832786,-2000.0,0.00022,2]
[325239064,1714615832796,-150.0,0.000239,2]
[325239065,1714615832805,-200.0,0.0002459,2]
[325239066,1714615832815,-154.88930464,0.00026,14]
[325239067,1714615832825,-167.9644499,0.00026378,2]
[325239068,1714615832834,-24900.0,0.00026469,2]
[325239069,1714615832844,-221.97267688,0.00028,2]
[325239070,1714615832853,-1104.83924078,0.0003,7]
[325239071,1714615832863,-246.8,0.0003131,3]
[325239072,1714615832874,-5000.0,0.00033,4]
[325239073,1714615832883,-8263.96055679,0.00033,2]
[325239074,1714615832893,-2993.96665912,0.00036,14]
[325239075,1714615832902,-163.03466047,0.00041,30]
[325239076,1714615832911,-676.67673,0.00044487,2]
[325239077,1714615832920,-1971.30554784,0.00044487,2]
[325239078,1714615832929,-9097.9472983,0.00044487,2]
[325239079,1714615832939,-3292.85354852,0.00044487,120]
[325239080,1714615832948,-167.013283,0.00049863,2]
[325239081,1714615833104,-8315.97934276,0.0005,30]
[325239082,1714615833117,-639.93781919,0.0005,30]
[325239119,1714615838928,-377.35956123,0.0005,30]
[325239121,1714615838940,-26.72327682,0.0005,30]
[325239123,1714615838949,-263.71672318,0.00052054,120]
[325239143,1714615839191,-218.27047814,0.00052054,120]
[325239145,1714615839201,-166.666666,0.00052055,2]
[325239148,1714615839212,-199.22731798,0.00052499,120]
[325239150,1714615839222,-790.21817534,0.000525,120]
[325239151,1714615839233,-3158.01752066,0.000525,120]
[325239152,1714615839242,-6730.71873157,0.000528,120]
[325239153,1714615839252,-522.54532094,0.00052876,120]
[325239154,1714615839261,-500.0,0.00052876,120]
[325239155,1714615839270,-500.0,0.00052876,120]
[325239156,1714615839279,-500.0,0.00052876,120]
[325239157,1714615839289,-500.0,0.00052876,120]
[325239158,1714615839298,-400.35869301,0.00052876,120]
[325239159,1714615839308,-500.0,0.00052876,120]
[325239160,1714615839317,-500.0,0.00052876,120]
[325239161,1714615839333,-508.22746464,0.00052876,120]
[325239162,1714615839342,-500.0,0.00052876,120]
[325239163,1714615839351,-500.0,0.00052876,120]
[325239164,1714615839361,-500.0,0.00052876,2]
[325239165,1714615839370,-158.83348771,0.00052876,120]
[325239166,1714615839380,-514.63452134,0.00052876,120]
[325239167,1714615839390,-500.0,0.00052876,2]
[325239168,1714615839400,-500.0,0.00052876,120]
[325239169,1714615839410,-500.0,0.00052876,2]
[325239170,1714615839420,-503.26002999,0.00052876,120]
[325239171,1714615839430,-500.0,0.00052876,120]
[325239172,1714615839439,-504.70258955,0.00052876,120]
[325239173,1714615839449,-502.56255958,0.00052876,120]
[325239174,1714615839459,-505.11085513,0.00052876,120]
[325239175,1714615839468,-620.11,0.00052876,120]
[325239176,1714615839477,-500.0,0.00052876,120]
[325239177,1714615839487,-501.64350102,0.00052876,120]
[325239178,1714615839497,-500.0,0.00052876,120]
[325239179,1714615839506,-500.0,0.00052876,120]
[325239180,1714615839516,-504.14002025,0.00052876,120]
[325239181,1714615839525,-500.0,0.00052876,120]
[325239182,1714615839535,-501.63595622,0.00052876,120]
[325239183,1714615839544,-500.0,0.00052876,120]
[325239184,1714615839554,-503.13876874,0.00052876,120]
[325239185,1714615839563,-502.60426021,0.00052876,120]
[325239186,1714615839573,-496.54352001,0.00052876,120]
[325239187,1714615839582,-500.0,0.00052876,120]
[325239188,1714615839592,-442.59237009,0.00052876,120]
[325239189,1714615839601,-500.0,0.00052876,120]
[325239190,1714615839611,-500.0,0.00052876,120]
[325239191,1714615839620,-500.0,0.00052876,120]
[325239192,1714615839629,-500.0,0.00052876,120]
[325239193,1714615839638,-500.0,0.00052876,120]
[325239194,1714615839648,-500.0,0.00052876,120]
[325239195,1714615839657,-500.0,0.00052876,7]
[325239196,1714615839666,-500.0,0.00052876,120]
[325239197,1714615839675,-500.0,0.00052876,2]
[325239198,1714615839684,-500.0,0.00052876,120]
[325239199,1714615839693,-701.45,0.00052876,120]
[325239200,1714615839702,-500.0,0.00052876,120]
[325239201,1714615839712,-492.04653835,0.00052876,120]
[325239202,1714615839722,-4859.47,0.00052876,120]
[325239203,1714615839731,-500.0,0.00052876,120]
[325239204,1714615839740,-500.0,0.00052876,120]
[325239205,1714615839749,-500.0,0.00052876,120]
[325239206,1714615839758,-500.0,0.00052876,120]
[325239207,1714615839769,-500.0,0.00052876,120]
[325239208,1714615839777,-500.0,0.00052876,120]
[325239209,1714615839786,-500.0,0.00052876,120]
[325239210,1714615839796,-235.55074743,0.00052876,120]
[325239211,1714615839806,-500.0,0.00052876,120]
[325239212,1714615839815,-500.0,0.00052876,120]
[325239213,1714615839826,-1422.55,0.00052876,120]
[325239214,1714615839836,-555.7,0.00052876,120]
[325239215,1714615839846,-1456.23,0.00052876,120]
[325239216,1714615839855,-500.0,0.00052876,21]
[325239217,1714615839864,-500.0,0.00052876,120]
[325239218,1714615839872,-500.0,0.00052876,120]
[325239219,1714615839882,-500.0,0.00052876,120]
[325239220,1714615839892,-500.0,0.00052876,120]
[325239221,1714615839902,-3545.28,0.00052876,120]
[325239222,1714615839912,-500.0,0.00052876,120]
[325239223,1714615839923,-500.0,0.00052876,120]
[325239224,1714615839933,-500.0,0.00052876,2]
[325239225,1714615839943,-500.0,0.00052876,30]
[325239226,1714615839953,-500.0,0.00052876,120]
[325239227,1714615839964,-500.0,0.00052876,120]
[325239228,1714615839974,-500.0,0.00052876,120]
[325239229,1714615839984,-500.0,0.00052876,120]
[325239230,1714615839994,-554.75671739,0.00052876,120]
[325239231,1714615840007,-500.0,0.00052876,120]
[325239232,1714615840016,-605.61,0.00052876,120]
[325239234,1714615840025,-500.0,0.00052876,120]
[325239235,1714615840035,-500.0,0.00052876,120]
[325239236,1714615840044,-500.0,0.00052876,120]
[325239237,1714615840053,-500.0,0.00052876,120]
[325239238,1714615840063,-500.0,0.00052876,120]
[325239239,1714615840072,-1418.13,0.00052876,120]
[325239240,1714615840084,-702.78,0.00052876,120]
[325239241,1714615840094,-293.25706647,0.00052876,120]
[325239242,1714615840105,-500.0,0.00052876,120]
[325239243,1714615840114,-500.0,0.00052876,120]
[325239244,1714615840124,-500.0,0.00052876,120]
[325239245,1714615840136,-639.26504949,0.00052876,120]
[325239246,1714615840146,-500.0,0.00052876,120]
[325239247,1714615840155,-500.0,0.00052876,120]
[325239248,1714615840164,-500.0,0.00052876,120]
[325239249,1714615840174,-500.0,0.00052876,120]
[325239250,1714615840183,-500.0,0.00052876,120]
[325239251,1714615840192,-500.0,0.00052876,120]
[325239252,1714615840204,-369.01831701,0.00052876,120]
[325239253,1714615840215,-500.0,0.00052876,120]
[325239254,1714615840225,-245.40923433,0.00052876,120]
[325239264,1714615840891,-245.49496776,0.00052876,120]
[325239265,1714615840901,-500.0,0.00052876,120]
[325239266,1714615840910,-500.0,0.00052876,120]
[325239267,1714615840920,-500.0,0.00052876,120]
[325239268,1714615840931,-500.0,0.00052876,120]
[325239269,1714615840940,-500.0,0.00052876,120]
[325239270,1714615840951,-500.0,0.00052876,120]
[325239271,1714615840963,-500.0,0.00052876,120]
[325239272,1714615840972,-500.0,0.00052876,120]
[325239273,1714615840981,-500.0,0.00052876,120]
[325239274,1714615840995,-546.06469617,0.00052876,120]
[325239275,1714615841005,-500.0,0.00052876,120]
[325239276,1714615841015,-500.0,0.00052876,120]
[325239277,1714615841026,-500.0,0.00052876,120]
[325239278,1714615841035,-1451.0,0.00053,120]
[325239279,1714615841045,-4939.56003239,0.00053333,120]
[325239280,1714615841056,-860.43996661,0.00053333,120]
[325239281,1714615841065,-480.11412652,0.00053424,120]
[325239282,1714615841074,-184.8132529,0.00053424,120]
[325239283,1714615841085,-315.1867471,0.00053424,120]
[325239284,1714615841094,-500.0,0.00053424,120]
[325239285,1714615841103,-162.93594311,0.00053424,120]
[325239286,1714615841113,-28.23490979,0.00053424,120]
[325239303,1714615843745,-471.76509021,0.00053424,120]
[325239304,1714615843755,-500.0,0.00053424,120]
[325239305,1714615843764,-500.0,0.00053424,120]
[325239306,1714615843773,-500.0,0.00053424,120]
[325239308,1714615843782,-500.0,0.00053424,2]
[325239309,1714615843792,-620.11,0.00053424,120]
[325239311,1714615843802,-500.0,0.00053424,120]
[325239312,1714615843811,-500.0,0.00053424,120]
[325239313,1714615843820,-500.0,0.00053424,120]
[325239315,1714615843829,-500.0,0.00053424,120]
[325239316,1714615843838,-500.0,0.00053424,120]
[325239318,1714615843847,-500.0,0.00053424,120]
[325239320,1714615843856,-500.0,0.00053424,120]
[325239321,1714615843865,-500.0,0.00053424,120]
[325239322,1714615843874,-307.85902574,0.00053424,7]
[325239323,1714615843884,-212.9390384,0.00053424,120]
[325239324,1714615843892,-500.0,0.00053424,2]
[325239325,1714615843902,-503.10879227,0.00053424,120]
[325239326,1714615843911,-701.45,0.00053424,120]
[325239327,1714615843920,-500.0,0.00053424,120]
[325239328,1714615843930,-4859.47,0.00053424,120]
[325239329,1714615843939,-500.0,0.00053424,120]
[325239330,1714615843949,-500.0,0.00053424,120]
[325239331,1714615843958,-500.0,0.00053424,120]
[325239332,1714615843970,-500.0,0.00053424,120]
[325239333,1714615843979,-500.0,0.00053424,120]
[325239334,1714615843989,-500.0,0.00053424,120]
[325239335,1714615843998,-500.0,0.00053424,120]
[325239336,1714615844007,-500.0,0.00053424,120]
[325239337,1714615844017,-1422.55,0.00053424,120]
[325239338,1714615844026,-555.7,0.00053424,120]
[325239339,1714615844035,-1456.23,0.00053424,120]
[325239340,1714615844044,-500.0,0.00053424,21]
[325239341,1714615844053,-500.0,0.00053424,120]
[325239342,1714615844062,-500.0,0.00053424,120]
[325239343,1714615844071,-500.0,0.00053424,120]
[325239346,1714615844080,-500.0,0.00053424,120]
[325239349,1714615844089,-3545.28,0.00053424,120]
[325239351,1714615844098,-500.0,0.00053424,120]
[325239352,1714615844107,-500.0,0.00053424,120]
[325239353,1714615844116,-500.0,0.00053424,2]
[325239354,1714615844126,-500.0,0.00053424,30]
[325239355,1714615844135,-500.0,0.00053424,120]
[325239356,1714615844145,-500.0,0.00053424,120]
[325239357,1714615844154,-500.0,0.00053424,120]
[325239358,1714615844163,-500.0,0.00053424,120]
[325239359,1714615844172,-606.30884847,0.00053424,120]
[325239360,1714615844182,-605.61,0.00053424,120]
[325239361,1714615844191,-500.0,0.00053424,120]
[325239362,1714615844202,-500.0,0.00053424,120]
[325239363,1714615844213,-500.0,0.00053424,120]
[325239364,1714615844222,-500.0,0.00053424,120]
[325239365,1714615844231,-500.0,0.00053424,120]
[325239366,1714615844240,-1418.13,0.00053424,120]
[325239367,1714615844250,-702.78,0.00053424,120]
[325239368,1714615844258,-500.0,0.00053424,120]
[325239369,1714615844268,-341.34668349,0.00053424,120]
[325239370,1714615844278,-500.0,0.00053424,120]
[325239371,1714615844288,-500.0,0.00053424,120]
[325239372,1714615844297,-500.0,0.00053424,120]
[325239373,1714615844307,-500.0,0.00053424,120]
[325239374,1714615844317,-500.0,0.00053424,120]